bitfinex-derivatives/quotes_ETHF0:USTF0_20250420
["timestamp","ask_amount","ask_price","bid_price","bid_amount"]
[1745192436145,1.26336,1583.2,1583.1,0.0148]
[1745192436350,5.79936,1583.2,1583.1,0.0148]
[1745192436549,1.26344,1583.1,1583.0,4.098]
[1745192436756,2.99174,1583.1,1583.0,4.098]
[1745192437061,2.99174,1583.1,1583.0,4.1128]
[1745192443068,2.99174,1583.1,1583.0,5.37632]
[1745192443662,8.85729249,1583.1,1583.0,5.37632]
[1745192444160,8.85729249,1583.1,1583.0,7.60432]
[1745192444569,8.85729249,1583.1,1583.0,9.00712]
[1745192447580,5.94482464,1583.1,1583.0,9.00712]
[1745192449182,7.20826464,1583.1,1583.0,9.00712]
[1745192451580,7.20826464,1583.1,1583.0,6.3408]
[1745192451781,5.94482464,1583.1,1583.0,7.60432]
[1745192452175,4.21652464,1583.1,1583.0,5.37632]
[1745192452476,4.21652464,1583.1,1583.0,9.90452]
[1745192453378,4.21652464,1583.1,1583.0,12.13252]
[1745192454082,5.89262464,1583.1,1583.0,12.13252]
[1745192454484,7.15606464,1583.1,1583.0,4.82672]
[1745192454684,8.54236464,1583.1,1583.0,7.60332]
[1745192454881,3.0624,1583.1,1583.0,7.60332]
[1745192455288,3.0624,1583.1,1583.0,5.37532]
[1745192459478,4.32584,1583.1,1583.0,5.37532]
[1745192465989,8.54236464,1583.1,1583.0,5.37532]
[1745192474092,8.54236464,1583.1,1583.0,0.0148]
[1745192475494,11.75016464,1583.1,1583.0,0.0148]
[1745192476289,1.26367,1582.9,1582.8,4.097]
[1745192476688,1.26367,1582.9,1582.8,5.36068]
[1745192476891,8.99759564,1583.0,1582.8,5.36068]
[1745192477088,5.96529564,1583.0,1582.9,1.2636]
[1745192477288,5.96529564,1583.0,1582.9,4.3151]
[1745192478106,5.96529564,1583.0,1582.9,6.5431]
[1745192478490,5.96529564,1583.0,1582.9,9.7509]
[1745192480897,12.26820759,1583.1,1583.0,1.26352]
[1745192481098,12.26820759,1583.1,1583.0,6.55402]
[1745192481803,11.00476759,1583.1,1583.0,6.55402]
[1745192481996,9.23606759,1583.1,1583.0,6.55402]
[1745192482405,6.33695293,1583.1,1583.0,6.55402]
[1745192485805,11.3668315,1583.1,1583.0,6.55402]
[1745192489710,5.02987857,1583.2,1583.1,1.26344]
[1745192489908,5.02987857,1583.2,1583.1,8.56724]
[1745192492710,4.22445101,1583.3,1583.2,1.26336]
[1745192492913,4.22445101,1583.3,1583.2,3.79596]
[1745192493119,4.22445101,1583.3,1583.2,6.02396]
[1745192493712,7.12353101,1583.3,1583.2,3.49136]
[1745192495909,5.86025101,1583.3,1583.2,3.49136]
[1745192496512,8.77813211,1583.3,1583.2,3.49136]
[1745192497415,10.04141211,1583.3,1583.2,7.58736]
[1745192498212,10.04141211,1583.3,1583.2,5.35936]
[1745192498406,8.77813211,1583.3,1583.2,5.35936]
[1745192500212,8.77813211,1583.3,1583.2,7.58736]
[1745192502010,8.77813211,1583.3,1583.2,9.22396]
[1745192503217,8.77813211,1583.3,1583.2,6.99596]
[1745192503417,8.77813211,1583.3,1583.2,8.21906]
[1745192504320,5.85608672,1583.3,1583.2,10.44706]
[1745192507417,5.85608672,1583.3,1583.2,9.22396]
[1745192508221,5.85608672,1583.3,1583.2,7.58736]
[1745192511226,5.85608672,1583.3,1583.2,5.35936]
[1745192512125,5.85608672,1583.3,1583.2,7.58736]
[1745192516133,5.85608672,1583.3,1583.2,5.35936]
[1745192517131,5.85608672,1583.3,1583.2,7.58736]
[1745192520532,7.11936672,1583.3,1583.2,7.58736]
[1745192521030,5.85608672,1583.3,1583.2,7.58736]
[1745192525246,6.66147086,1583.3,1583.2,7.58736]
[1745192527438,5.02567086,1583.3,1583.2,7.58736]
[1745192527737,5.02567086,1583.3,1583.2,13.79306]
[1745192528043,5.02567086,1583.3,1583.2,6.69916]
[1745192528347,8.07515086,1583.3,1583.2,2.228]
[1745192529245,1.26336,1583.2,1583.1,1.26342]
[1745192529445,4.37376,1583.2,1583.1,1.26342]
[1745192529947,3.1104,1583.2,1583.1,1.26342]
[1745192531141,1.7862,1583.2,1583.1,1.26342]
[1745192531349,1.7862,1583.2,1583.1,4.22622]
[1745192532047,5.02567086,1583.3,1583.2,1.26336]
[1745192532343,6.66257086,1583.3,1583.2,2.90786]
[1745192533142,6.66257086,1583.3,1583.2,5.13586]
[1745192533349,12.19413965,1583.3,1583.2,5.13586]
[1745192533550,7.97385293,1583.3,1583.2,5.13586]
[1745192533751,7.97385293,1583.3,1583.2,7.58636]
[1745192534145,9.23713293,1583.3,1583.2,2.228]
[1745192534455,9.23713293,1583.3,1583.2,6.323]
[1745192535148,9.23713293,1583.3,1583.2,4.095]
[1745192536355,21.46665763,1583.3,1583.2,4.095]
[1745192537254,1.26344,1583.1,1583.0,4.095]
[1745192537453,1.26344,1583.1,1583.0,5.35852]
[1745192537652,1.26344,1583.1,1583.0,4.095]
[1745192537852,4.30334,1583.1,1583.0,4.095]
[1745192538248,4.30334,1583.1,1583.0,5.35852]
[1745192538656,4.30334,1583.1,1583.0,4.095]
[1745192539153,4.30334,1583.1,1583.0,5.35852]
[1745192541055,4.30334,1583.1,1583.0,4.095]
[1745192541447,11.44438102,1583.1,1583.0,4.095]
[1745192542355,11.44438102,1583.1,1583.0,5.35852]
[1745192542761,11.44438102,1583.1,1583.0,4.095]
[1745192543057,11.44438102,1583.1,1582.9,1.26354]
[1745192543261,4.31632,1583.0,1582.9,5.35754]
[1745192545262,4.31632,1583.0,1582.9,7.58554]
[1745192545762,3.0528,1583.0,1582.9,7.58554]
[1745192545949,3.0528,1583.0,1582.9,10.50654]
[1745192546154,8.07926594,1583.0,1582.9,10.50654]
[1745192546760,9.34278594,1583.0,1582.9,6.322]
[1745192547260,9.34278594,1583.0,1582.9,4.094]
[1745192548062,9.34278594,1583.0,1582.9,5.3576]
[1745192549766,8.53729449,1583.0,1582.9,5.3576]
[1745192550272,7.27377449,1583.0,1582.9,5.3576]
[1745192550864,7.27377449,1583.0,1582.9,7.1305]
[1745192551165,7.27377449,1583.0,1582.9,9.3585]
[1745192551861,5.92487449,1583.0,1582.9,9.3585]
[1745192553361,4.22097449,1583.0,1582.9,9.3585]
[1745192553568,4.22097449,1583.0,1582.9,14.3585]
[1745192553964,4.22097449,1583.1,1583.0,1.26352]
[1745192554166,4.22097449,1583.1,1583.0,10.83822]
[1745192557972,15.76216013,1583.3,1583.0,9.5747]
[1745192558176,1.7563,1583.2,1583.1,1.6526]
[1745192558379,1.7563,1583.2,1583.1,2.91604]
[1745192559677,4.22097449,1583.3,1583.2,1.26336]
[1745192559884,4.22097449,1583.3,1583.2,11.50446]
[1745192560378,4.22097449,1583.3,1583.2,13.73246]
[1745192561168,1.97817449,1583.3,1583.2,18.73246]
[1745192561372,4.49e-06,1583.3,1583.2,18.73246]
[1745192563083,6.33554957,1583.6,1583.5,1.26312]
[1745192563277,6.33554957,1583.6,1583.5,8.56492]
[1745192563974,6.33554957,1583.6,1583.5,10.19972]
[1745192564176,6.33554957,1583.6,1583.5,12.42772]
[1745192567579,1.66806581,1583.7,1583.6,1.26304]
[1745192567776,1.66806581,1583.7,1583.6,3.03564]
[1745192569182,1.66806581,1583.7,1583.6,4.39264]
[1745192569884,1.66806581,1583.7,1583.6,5.70364]
[1745192572078,5.81e-06,1583.7,1583.6,5.70364]
[1745192572280,5.81e-06,1583.7,1583.6,10.70364]
[1745192572983,5.81e-06,1583.7,1583.6,11.20529354]
[1745192574787,5.81e-06,1583.7,1583.6,11.83729354]
[1745192576079,5.81e-06,1583.7,1583.6,9.79464]
[1745192576283,5.81e-06,1583.7,1583.6,1.26304]
[1745192576590,1.69080581,1583.7,1583.6,5.35404]
[1745192581894,1.69080581,1583.7,1583.6,6.98754]
[1745192582296,5.81e-06,1583.7,1583.6,6.98754]
[1745192583190,1.62270581,1583.7,1583.6,6.98754]
[1745192587394,1.62270581,1583.7,1583.6,5.35404]
[1745192590699,1.62270581,1583.7,1583.6,1.26304]
[1745192590900,1.62270581,1583.7,1583.6,5.35404]
[1745192592301,2.88566581,1583.7,1583.6,5.35404]
[1745192592499,7.88566581,1583.7,1583.6,4.091]
[1745192592799,7.88566581,1583.7,1583.6,5.35404]
[1745192593001,7.88566581,1583.7,1583.5,1.26309]
[1745192593002,1.26304,1583.6,1583.5,1.26309]
[1745192593203,2.96504,1583.6,1583.5,5.35409]
[1745192593393,7.96504,1583.6,1583.5,5.35409]
[1745192593593,6.702,1583.6,1583.5,5.35409]
[1745192594004,1.702,1583.6,1583.5,5.35409]
[1745192594207,1.702,1583.6,1583.5,1.26309]
[1745192594393,1.702,1583.6,1583.5,5.35509]
[1745192600299,2.9515,1583.6,1583.5,5.35509]
[1745192603105,2.9515,1583.6,1583.5,7.58309]
[1745192605803,2.9515,1583.6,1583.5,8.88619]
[1745192608312,2.9515,1583.6,1583.5,7.58309]
[1745192609314,2.9515,1583.6,1583.5,5.35509]
[1745192612117,4.21454,1583.6,1583.5,5.35509]
[1745192613815,4.21454,1583.6,1583.5,4.092]
[1745192614320,4.21454,1583.6,1583.5,5.35512]
[1745192616517,11.35537272,1583.6,1583.5,5.35512]
[1745192617708,11.35537272,1583.6,1583.5,1.26312]
[1745192617914,11.35537272,1583.6,1583.5,4.091]
[1745192618314,11.35537272,1583.6,1583.5,5.35412]
[1745192621123,7.14083272,1583.6,1583.5,5.35412]
[1745192621910,7.14083272,1583.6,1583.5,7.00232]
[1745192622113,7.14083272,1583.6,1583.5,9.23032]
[1745192622310,7.14083272,1583.6,1583.5,12.43812]
[1745192624518,1.64650581,1583.7,1583.6,1.26304]
[1745192626518,1.64650581,1583.7,1583.6,4.30534]
[1745192635837,2.45167413,1583.7,1583.6,4.30534]
[1745192637533,2.45167413,1583.7,1583.6,4.09]
[1745192637534,3.71463413,1583.7,1583.6,4.09]
[1745192638434,3.71463413,1583.7,1583.6,5.35304]
[1745192638929,3.71463413,1583.7,1583.6,4.09]
[1745192639335,10.0501837,1583.7,1583.6,4.09]
[1745192639929,10.0501837,1583.7,1583.6,5.35304]
[1745192641735,10.0501837,1583.7,1583.6,4.09]
[1745192642331,3.71463413,1583.7,1583.6,4.09]
[1745192642639,1.26304,1583.6,1583.5,5.35306]
[1745192642838,5.46974,1583.6,1583.5,5.35306]
[1745192643339,4.2067,1583.6,1583.5,5.35306]
[1745192644038,4.2067,1583.6,1583.5,1.26306]
[1745192644239,4.2067,1583.6,1583.5,5.35306]
[1745192644934,5.46974,1583.6,1583.5,5.35306]
[1745192645531,5.46974,1583.6,1583.5,1.26306]
[1745192645737,5.46974,1583.6,1583.5,5.35306]
[1745192646336,12.60534313,1583.6,1583.5,4.09]
[1745192648046,12.60534313,1583.6,1583.5,5.35312]
[1745192649547,12.60534313,1583.6,1583.5,4.09]
[1745192650647,18.57063877,1583.6,1583.5,4.09]
[1745192653451,18.57063877,1583.6,1583.4,5.3542]
[1745192653651,2.89222,1583.5,1583.4,5.3542]
[1745192658360,10.02676307,1583.5,1583.4,5.3542]
[1745192660257,8.76364307,1583.5,1583.4,5.3542]
[1745192661355,8.76364307,1583.5,1583.4,6.9947]
[1745192661960,7.13454307,1583.5,1583.4,6.9947]
[1745192662275,7.13454307,1583.5,1583.4,18.6769]
[1745192663073,7.13454307,1583.5,1583.4,13.6769]
[1745192665077,7.13454307,1583.5,1583.4,18.6769]
[1745192666477,0.80517413,1583.7,1583.6,1.26304]
[1745192666676,0.80517413,1583.7,1583.6,4.47084]
[1745192667268,0.80517413,1583.7,1583.6,6.15204]
[1745192669580,5.81e-06,1583.7,1583.6,6.15204]
[1745192683391,12.45892015,1584.5,1584.2,1.26256]
[1745192683585,12.45892015,1584.5,1584.2,8.55936]
[1745192683787,14.17412015,1584.5,1584.2,8.55936]
[1745192684292,1.7152,1584.4,1584.2,10.78736]
[1745192684893,1.7152,1584.4,1584.2,11.28820735]
[1745192686197,1.7152,1584.4,1584.2,11.76044394]
[1745192686594,9.16437205,1584.3,1584.2,11.76044394]
[1745192686801,7.50953205,1584.3,1584.2,11.76044394]
[1745192686999,4.20844205,1584.3,1584.2,11.76044394]
[1745192687293,2.56693205,1584.3,1584.2,11.76044394]
[1745192687502,1.7105,1584.7,1584.6,1.26224]
[1745192687795,1.7105,1584.7,1584.6,8.55804]
[1745192687996,6.7105,1584.7,1584.6,8.55804]
[1745192690493,1.7105,1584.7,1584.6,8.55804]
[1745192693801,1.7105,1584.7,1584.6,5.35024]
[1745192693988,1.7105,1584.7,1584.6,8.55804]
[1745192697596,1.7105,1584.7,1584.6,5.35024]
[1745192697797,1.7105,1584.7,1584.6,8.55804]
[1745192698999,1.7105,1584.7,1584.6,9.79994]
[1745192699702,1.7105,1584.7,1584.6,6.59214]
[1745192699894,1.7105,1584.7,1584.6,9.79994]
[1745192700294,3.2078,1585.1,1585.0,1.26193]
[1745192700493,3.2078,1585.1,1584.9,5.34794]
[1745192700494,4.46965,1585.1,1584.9,5.34794]
[1745192700694,1.281,1585.0,1584.9,5.34794]
[1745192701602,2.9051,1585.0,1584.9,5.34794]
[1745192703806,2.9051,1585.0,1584.9,6.59034]
[1745192708198,2.9051,1585.0,1584.9,10.60464]
[1745192709100,2.9051,1585.0,1584.9,8.37664]
[1745192710099,7.1917,1585.2,1585.1,1.26185]
[1745192710399,1.6619,1585.2,1585.1,1.26185]
[1745192710803,1.6619,1585.2,1585.1,2.97335]
[1745192711305,1.2577,1585.3,1585.2,1.26177]
[1745192711505,1.2577,1585.3,1585.2,12.83157]
[1745192712205,6.2577,1585.3,1585.2,3.2078]
[1745192712410,7.51939,1585.3,1585.2,3.2078]
[1745192713100,9.74739,1585.3,1585.2,3.2078]
[1745192714795,9.74739,1585.3,1585.2,4.46957]
[1745192715002,4.74739,1585.3,1585.2,4.46957]
[1745192715505,9.74739,1585.3,1585.2,3.2078]
[1745192715707,11.50739,1585.3,1585.2,3.2078]
[1745192716512,6.50739,1585.3,1585.2,3.2078]
[1745192724714,6.50739,1585.3,1585.2,4.46957]
[1745192725012,6.50739,1585.3,1585.2,3.2078]
[1745192726319,4.27939,1585.3,1585.2,3.2078]
[1745192726713,4.27939,1585.3,1585.1,8.55458]
[1745192726915,1.7664,1585.2,1585.1,8.55458]
[1745192727216,3.0921,1585.2,1585.1,8.55458]
[1745192728015,4.35387,1585.2,1585.1,8.55458]
[1745192729516,3.0921,1585.2,1585.1,8.55458]
[1745192730511,3.02817,1585.2,1585.1,8.55458]
[1745192730718,3.02817,1585.2,1585.1,10.34258]
[1745192731017,1.7664,1585.2,1585.1,10.34258]
[1745192731421,1.7664,1585.2,1585.1,11.58478]
[1745192732519,3.02817,1585.2,1585.1,11.58478]
[1745192732717,3.02817,1585.2,1585.1,10.323]
[1745192733118,3.02817,1585.2,1585.1,11.58485]
[1745192735206,1.7664,1585.2,1585.1,11.58485]
[1745192736419,3.02817,1585.2,1585.1,11.58485]
[1745192736821,3.02817,1585.2,1585.1,8.37705]
[1745192737120,3.02817,1585.2,1585.1,11.58485]
[1745192737818,1.7664,1585.2,1585.1,11.58485]
[1745192738520,3.02817,1585.2,1585.1,11.58485]
[1745192740822,6.75866708,1585.3,1585.1,11.58485]
[1745192741018,5.46376708,1585.3,1585.2,1.6641]
[1745192741216,7.25076708,1585.3,1585.2,2.8923]
[1745192741619,8.46306708,1585.3,1585.2,2.8923]
[1745192743217,10.69106708,1585.3,1585.2,2.8923]
[1745192743420,1.26177,1585.2,1585.1,1.2422]
[1745192743612,1.26185,1585.1,1585.0,5.7481]
[1745192743818,3.78825,1585.1,1585.0,4.084]
[1745192744623,3.78825,1585.1,1585.0,5.7063]
[1745192745815,1.26185,1585.1,1585.0,5.7063]
[1745192746525,3.04675,1585.1,1585.0,5.7063]
[1745192748528,10.17649661,1585.1,1585.0,5.7063]
[1745192749116,10.17649661,1585.1,1585.0,6.96823]
[1745192749627,7.12974661,1585.1,1585.0,6.96823]
[1745192751523,4.21705649,1585.1,1585.0,6.96823]
[1745192752925,5.47890649,1585.1,1585.0,10.17603]
[1745192753326,4.21705649,1585.1,1585.0,10.17603]
[1745192753518,5.47890649,1585.1,1585.0,10.17603]
[1745192755829,4.21705649,1585.1,1585.0,10.17603]
[1745192758020,7.15500649,1585.1,1585.0,10.17603]
[1745192758222,10.06767143,1585.1,1585.0,10.17603]
[1745192758731,10.06767143,1585.1,1585.0,6.96823]
[1745192759029,10.06767143,1585.1,1585.0,10.17603]
[1745192761129,7.12972143,1585.1,1585.0,15.17603]
[1745192762119,7.12972143,1585.1,1585.0,17.40403]
[1745192764525,7.12972143,1585.1,1585.0,12.40403]
[1745192765624,12.26838732,1585.4,1585.3,1.26169]
[1745192765823,12.26838732,1585.4,1585.3,8.55249]
[1745192766730,12.26838732,1585.4,1585.3,9.77889]
[1745192767323,12.26838732,1585.4,1585.3,11.45709]
[1745192770237,5.94314777,1585.4,1585.3,11.45709]
[1745192772039,5.94314777,1585.4,1585.3,6.57009]
[1745192773031,7.20475777,1585.4,1585.3,6.57009]
[1745192773238,5.94314777,1585.4,1585.3,6.57009]
[1745192773439,7.20475777,1585.4,1585.3,6.57009]
[1745192774230,7.20475777,1585.4,1585.3,5.3084]
[1745192774429,2.98791,1585.4,1585.3,6.57009]
[1745192774837,2.98791,1585.4,1585.3,5.3084]
[1745192775337,2.98791,1585.4,1585.3,8.5162]
[1745192775540,1.7263,1585.4,1585.3,6.57009]
[1745192776731,2.98791,1585.4,1585.3,8.55149]
[1745192777535,7.20475777,1585.4,1585.3,8.55149]
[1745192777737,7.20475777,1585.4,1585.3,5.34369]
[1745192777940,7.20475777,1585.4,1585.3,8.55149]
[1745192778640,7.20475777,1585.4,1585.2,1.26171]
[1745192778641,1.26169,1585.3,1585.2,1.26171]
[1745192778839,1.26177,1585.2,1585.1,7.2898]
[1745192779141,2.50077,1585.2,1585.1,7.2898]
[1745192779343,4.16517,1585.2,1585.1,7.2898]
[1745192781033,4.16517,1585.2,1585.1,3.2078]
[1745192781232,1.262,1585.0,1584.9,3.2078]
[1745192781440,4.17111,1585.1,1584.9,8.55181]
[1745192781647,1.6988,1585.0,1584.9,8.55181]
[1745192782632,1.6988,1585.0,1584.9,10.23271]
[1745192784142,2.96073,1585.0,1584.9,10.23271]
[1745192784443,1.6988,1585.0,1584.9,10.23271]
[1745192785844,2.96073,1585.0,1584.9,10.23271]
[1745192786644,2.96073,1585.0,1584.9,8.9707]
[1745192787539,2.96073,1585.0,1584.9,10.23271]
[1745192788149,2.96073,1585.0,1584.9,8.9707]
[1745192788447,2.96073,1585.0,1584.9,4.082]
[1745192788838,1.26201,1584.9,1584.8,96.184]
[1745192789039,5.54861,1584.9,1584.8,100.266]
[1745192789847,5.54861,1584.9,1584.8,101.52808]
[1745192790050,5.54861,1584.9,1584.8,4.082]
[1745192792752,1.26208,1584.8,1584.7,4.46994]
[1745192792954,1.6658,1584.8,1584.7,8.55194]
[1745192793144,1.6658,1584.8,1584.7,10.77994]
[1745192793746,1.6658,1584.8,1584.7,9.5178]
[1745192793944,2.92788,1584.8,1584.7,10.77996]
[1745192794146,2.92788,1584.8,1584.7,8.55196]
[1745192795248,2.92788,1584.8,1584.7,9.5178]
[1745192796150,2.92788,1584.8,1584.7,7.2898]
[1745192796353,2.92788,1584.8,1584.7,9.0653]
[1745192796547,2.92788,1584.8,1584.7,10.32746]
[1745192796850,2.5661,1584.9,1584.7,10.32741]
[1745192797053,1.26208,1584.8,1584.7,10.32741]
[1745192797253,1.26208,1584.8,1584.7,11.2933]
[1745192797456,2.98708,1584.8,1584.7,11.2933]
[1745192798147,2.98708,1584.8,1584.7,9.0653]
[1745192802954,2.98708,1584.8,1584.7,5.8575]
[1745192805152,2.98708,1584.8,1584.7,8.0855]
[1745192805855,2.98708,1584.8,1584.7,9.34766]
[1745192806250,2.98708,1584.8,1584.7,7.11966]
[1745192807656,2.98708,1584.8,1584.7,5.8575]
[1745192809052,2.98708,1584.8,1584.7,7.11966]
[1745192809856,2.98708,1584.8,1584.7,7.1723]
[1745192812258,2.98708,1584.8,1584.7,8.43446]
[1745192816460,10.20084777,1585.0,1584.8,1.26208]
[1745192816654,1.647,1584.9,1584.8,4.16518]
[1745192818159,2.90901,1584.9,1584.8,4.16518]
[1745192818561,2.90901,1584.9,1584.8,2.9031]
[1745192819567,2.90901,1584.9,1584.8,4.16518]
[1745192820070,2.90901,1584.9,1584.8,2.9031]
[1745192821874,2.90901,1584.9,1584.8,4.16518]
[1745192823863,4.21684777,1585.0,1584.9,1.26201]
[1745192824071,4.21684777,1585.0,1584.9,7.44051]
[1745192825073,6.32523955,1585.0,1584.9,7.44051]
[1745192825273,7.58716955,1585.0,1584.9,9.66851]
[1745192825463,9.28166955,1585.0,1584.9,9.66851]
[1745192826075,9.28166955,1585.0,1584.9,7.44051]
[1745192826574,8.01973955,1585.0,1584.9,7.44051]
[1745192827874,9.28166955,1585.0,1584.9,7.44051]
[1745192828974,8.01973955,1585.0,1584.9,7.44051]
[1745192829574,6.714081,1585.0,1584.9,7.44051]
[1745192830476,7.976011,1585.0,1584.9,7.44051]
[1745192830976,7.976011,1585.0,1584.9,3.2078]
[1745192831177,9.314411,1585.0,1584.9,3.2078]
[1745192831674,9.314411,1585.0,1584.9,4.46981]
[1745192832472,15.63965055,1585.0,1584.9,4.46981]
[1745192832976,15.63965055,1585.0,1584.9,3.2078]
[1745192833373,15.63965055,1585.0,1584.9,4.46981]
[1745192834071,15.63965055,1585.0,1584.9,3.2078]
[1745192835271,15.63965055,1585.0,1584.9,4.46981]
[1745192837776,15.63965055,1585.0,1584.9,3.2078]
[1745192838375,15.63965055,1585.0,1584.9,4.46981]
[1745192840674,15.63965055,1585.0,1584.9,3.2078]
[1745192841277,15.63965055,1585.0,1584.9,4.46981]
[1745192841470,14.30125055,1585.0,1584.9,4.46981]
[1745192841671,13.03932055,1585.0,1584.9,6.10651]
[1745192841873,11.34482055,1585.0,1584.9,6.10651]
[1745192842071,11.34482055,1585.0,1584.9,8.33451]
[1745192843584,13.11252055,1585.0,1584.9,8.33451]
[1745192844081,13.11252055,1585.0,1584.9,6.10651]
[1745192846183,13.11252055,1585.0,1584.9,8.33451]
[1745192846386,1.7677,1585.0,1584.9,8.33451]
[1745192846687,4.21502996,1585.1,1585.0,1.26193]
[1745192846891,4.21502996,1585.1,1585.0,8.27003]
[1745192847184,4.21502996,1585.1,1585.0,10.49803]
[1745192847384,4.21502996,1585.1,1585.0,15.49803]
[1745192847979,4.21502996,1585.1,1585.0,10.49803]
[1745192850877,4.21502996,1585.1,1585.0,13.70583]
[1745192851277,10.01576983,1585.3,1585.2,1.26177]
[1745192851278,5.85912996,1585.3,1585.2,1.26177]
[1745192851874,5.85912996,1585.3,1585.2,2.57637]
[1745192852069,5.85912996,1585.3,1585.2,1.3146]
[1745192852070,7.12081996,1585.3,1585.2,1.3146]
[1745192852275,7.12081996,1585.3,1585.1,7.52889]
[1745192852478,1.7565,1585.2,1585.1,8.84349]
[1745192852681,3.141,1585.2,1585.1,8.84349]
[1745192853485,4.40277,1585.2,1585.1,8.84349]
[1745192853682,4.40277,1585.2,1585.1,5.78419]
[1745192854184,3.141,1585.2,1585.1,5.78419]
[1745192855389,1.7565,1585.2,1585.1,5.78419]
[1745192855576,1.7565,1585.2,1585.1,7.47139]
[1745192857486,3.1938,1585.2,1585.1,7.47139]
[1745192859480,1.7565,1585.2,1585.1,7.47139]
[1745192870388,1.7565,1585.2,1585.1,5.78419]
[1745192870586,1.7565,1585.2,1585.1,4.46959]
[1745192871882,3.0971,1585.2,1585.1,4.46959]
[1745192878196,4.35887,1585.2,1585.1,4.46959]
[1745192878397,8.57389996,1585.2,1585.1,4.46959]
[1745192879288,7.31212996,1585.2,1585.1,4.46959]
[1745192880499,4.21502996,1585.2,1585.1,7.58089]
[1745192882000,5.99462996,1585.2,1585.1,8.98039]
[1745192882706,1.7796,1585.2,1585.1,8.98039]
[1745192893214,1.7796,1585.2,1585.1,5.77259]
[1745192893408,1.7796,1585.2,1585.1,8.98039]
[1745192894113,3.04137,1585.2,1585.1,3.2078]
[1745192894318,3.04137,1585.2,1585.1,7.2858]
[1745192894712,1.26193,1585.0,1584.9,11.59124865]
[1745192894912,1.26193,1585.0,1584.9,13.72345865]
[1745192895313,4.31483,1585.0,1584.9,13.72345865]
[1745192895923,4.31483,1585.0,1584.9,8.38344865]
[1745192896122,4.31483,1585.0,1584.9,12.46144865]
[1745192896424,4.31483,1585.0,1584.9,13.72345865]
[1745192897425,4.31483,1585.0,1584.9,5.34001]
[1745192897426,9.33435847,1585.0,1584.9,5.34001]
[1745192900624,9.33435847,1585.0,1584.9,4.078]
[1745192901125,9.33435847,1585.0,1584.9,5.34001]
[1745192902225,8.52985996,1585.0,1584.9,5.34001]
[1745192904121,8.52985996,1585.0,1584.9,7.12411]
[1745192904430,8.52985996,1585.0,1584.9,5.8621]
[1745192904629,8.52985996,1585.0,1584.9,4.078]
[1745192905025,7.26792996,1585.0,1584.8,7.66972]
[1745192905230,4.40841,1584.9,1584.8,3.2078]
[1745192905431,4.40841,1584.9,1584.8,7.2868]
[1745192906134,4.40841,1584.9,1584.8,8.54888]
[1745192906632,4.40841,1584.9,1584.8,7.2868]
[1745192907333,4.40841,1584.9,1584.8,4.079]
[1745192907532,4.40841,1584.9,1584.8,7.2868]
[1745192908236,1.26208,1584.8,1584.7,100.51329]
[1745192908437,2.89268,1584.8,1584.7,107.80009]
[1745192909034,4.28338,1584.8,1584.7,107.80009]
[1745192909435,4.28338,1584.8,1584.7,104.74289]
[1745192909935,1.26216,1584.7,1584.6,1.3657]
[1745192910132,4.28246,1584.7,1584.6,5.4447]
[1745192910337,4.28246,1584.7,1584.6,6.70694]
[1745192911730,3.0203,1584.7,1584.6,6.70694]
[1745192912339,3.0203,1584.7,1584.6,8.39514]
[1745192912541,4.28246,1584.7,1584.6,7.1329]
[1745192912837,4.28246,1584.7,1584.6,8.39514]
[1745192913435,4.28246,1584.7,1584.6,4.31614]
[1745192913634,4.28246,1584.7,1584.6,8.39414]
[1745192914234,3.0203,1584.7,1584.6,8.39414]
[1745192914435,2.89276,1584.7,1584.6,7.1319]
[1745192914643,4.19816,1584.7,1584.6,7.1319]
[1745192914940,1.26224,1584.6,1584.5,5.90967]
[1745192915143,2.99694,1584.6,1584.5,9.98767]
[1745192916039,1.7347,1584.6,1584.5,11.61077]
[1745192919651,1.7347,1584.6,1584.5,8.40297]
[1745192919844,1.7347,1584.6,1584.5,11.61077]
[1745192920941,1.7347,1584.6,1584.5,8.40297]
[1745192921148,1.7347,1584.6,1584.5,11.61077]
[1745192926747,1.7347,1584.6,1584.5,8.40297]
[1745192927050,1.7347,1584.6,1584.5,11.61077]
[1745192928754,2.99694,1584.6,1584.5,7.53277]
[1745192928946,2.99694,1584.6,1584.5,8.54907]
[1745192929148,4.34034,1584.6,1584.5,8.54907]
[1745192930645,4.34034,1584.6,1584.5,7.2868]
[1745192931155,4.34034,1584.6,1584.5,8.54912]
[1745192932245,4.34034,1584.6,1584.5,3.2078]
[1745192932443,4.34034,1584.6,1584.5,7.2868]
[1745192932850,4.34034,1584.6,1584.5,4.079]
[1745192933154,4.34041,1584.6,1584.5,1.26232]
[1745192933455,4.34041,1584.6,1584.4,10.3499]
[1745192933652,2.60571,1584.6,1584.4,10.3499]
[1745192933955,2.56762,1584.7,1584.4,10.3499]
[1745192934158,1.26224,1584.6,1584.5,4.37657]
[1745192935165,3.94802,1584.7,1584.6,1.26224]
[1745192935359,3.94802,1584.7,1584.6,2.70234]
[1745192935658,3.94802,1584.7,1584.6,4.44304]
[1745192936259,3.94802,1584.7,1584.6,3.1808]
[1745192936559,1.26216,1584.7,1584.6,4.44304]
[1745192939059,11.80240951,1584.8,1584.7,1.26216]
[1745192939258,5.47716996,1584.8,1584.7,1.26216]
[1745192940863,5.47716996,1584.8,1584.7,5.34116]
[1745192942056,4.21502996,1584.8,1584.7,5.34116]
[1745192942255,4.21502996,1584.8,1584.7,8.49606]
[1745192945158,4.21502996,1584.8,1584.7,10.72406]
[1745192947768,4.21502996,1584.8,1584.7,13.93186]
[1745192948163,4.21502996,1584.8,1584.7,11.70386]
[1745192948973,5.47695996,1585.0,1584.8,1.26202]
[1745192949161,5.47695996,1585.0,1584.9,3.2078]